bitfinex/quotes_ETHUSD_20240614
["timestamp","ask_amount","ask_price","bid_price","bid_amount"]
[1718360449541,0.55,3515.0,3514.5,1.43344514]
[1718360454122,0.55,3515.0,3514.6,0.701]
[1718360454332,2.4136,3515.5,3514.8,0.701]
[1718360454533,2.4136,3515.5,3514.9,1.49033976]
[1718360455473,2.4136,3515.5,3514.9,1.43344514]
[1718360456051,0.55,3515.4,3514.9,1.43344514]
[1718360457362,0.61689151,3515.4,3514.9,1.43344514]
[1718360457565,0.61689151,3515.4,3515.0,0.701]
[1718360457566,0.55,3515.4,3515.0,0.701]
[1718360457776,2.4136,3515.5,3515.0,0.701]
[1718360457777,2.3662,3516.4,3515.2,0.701]
[1718360457950,0.06689151,3516.3,3515.4,0.701]
[1718360458149,0.06689151,3516.2,3515.4,2.13444514]
[1718360459590,0.55,3516.1,3515.4,2.13444514]
[1718360460584,0.55,3516.1,3515.5,1.43344514]
[1718360460784,0.55,3516.1,3515.6,0.701]
[1718360460985,0.55,3516.2,3515.6,2.13444514]
[1718360461978,0.55,3516.2,3515.6,1.43344514]
[1718360462303,0.55,3516.2,3515.8,0.701]
[1718360462479,0.55,3516.3,3515.9,1.43344514]
[1718360465025,2.2785,3517.0,3515.9,1.43344514]
[1718360465282,0.701,3516.8,3515.9,1.43344514]
[1718360465404,0.61689151,3516.7,3515.9,1.43344514]
[1718360465721,0.61689151,3516.7,3515.9,1.84048557]
[1718360466944,2.4522,3516.6,3515.9,1.84048557]
[1718360467123,0.55,3516.5,3515.9,1.43344514]
[1718360470305,0.55,3516.5,3515.9,1.29144514]
[1718360471523,0.61689151,3516.5,3515.9,1.29144514]
[1718360471926,3.1811,3516.4,3515.9,1.29144514]
[1718360472148,0.44669066,3516.3,3515.9,1.29144514]
[1718360472351,0.55,3516.2,3515.9,1.29144514]
[1718360472823,0.55,3516.2,3515.9,1.26344514]
[1718360473509,0.99501151,3516.2,3515.9,1.26344514]
[1718360476646,1.06190302,3516.2,3515.9,1.26344514]
[1718360478551,1.52418324,3516.2,3515.9,1.26344514]
[1718360478718,1.45729173,3516.2,3515.9,1.26344514]
[1718360479249,2.4416,3516.0,3515.4,7.27]
[1718360479412,2.4416,3515.8,3515.4,7.27]
[1718360479614,0.76789151,3515.7,3515.4,7.27]
[1718360479836,0.701,3515.5,3515.4,7.27]
[1718360480014,0.701,3515.5,3514.6,0.701]
[1718360480015,1.31789151,3515.5,3514.6,7.971]
[1718360480351,0.701,3515.3,3514.7,1.43344514]
[1718360480516,0.61689151,3515.2,3514.7,1.43344514]
[1718360483350,0.55,3515.2,3514.7,2.13444514]
[1718360483555,0.55,3515.4,3514.7,2.13444514]
[1718360484340,0.55,3515.4,3514.8,0.05689707]
[1718360484661,0.55,3515.4,3514.9,1.43344514]
[1718360484954,0.55,3515.4,3514.9,2.13444514]
[1718360485156,0.55,3515.6,3514.9,4.42354514]
[1718360486957,2.3029,3515.7,3514.9,4.42354514]
[1718360487159,2.60329,3515.7,3514.9,4.42354514]
[1718360488023,0.701,3515.9,3515.0,1.76489349]
[1718360488223,2.4862,3516.0,3515.2,1.708]
[1718360488427,2.4862,3516.0,3515.3,1.43344514]
[1718360489261,0.44501151,3516.2,3515.5,0.701]
[1718360489461,0.51190302,3516.2,3515.6,1.49032865]
[1718360489634,0.44501151,3516.2,3515.6,1.49032865]
[1718360489838,0.51190302,3516.2,3515.6,1.49032865]
[1718360490015,0.51190302,3516.2,3515.6,1.43344514]
[1718360492324,0.44501151,3516.2,3515.6,1.43344514]
[1718360497227,0.06689151,3516.1,3515.6,1.43344514]
[1718360498339,0.06689151,3516.2,3515.6,1.43344514]
[1718360499584,0.701,3515.9,3515.1,3.961]
[1718360499877,1.01781915,3515.9,3515.2,1.43344514]
[1718360500252,1.01781915,3515.9,3515.3,1.708]
[1718360500550,1.01781915,3515.9,3515.4,1.43344514]
[1718360502176,0.61689151,3515.8,3514.9,9.679]
[1718360502339,0.06689151,3515.7,3515.0,1.43344514]
[1718360509984,2.431,3515.6,3515.0,1.43344514]
[1718360513494,0.06689151,3515.5,3514.9,7.27]
[1718360513692,1.50078915,3515.4,3514.9,7.27]
[1718360513991,0.06689151,3515.3,3514.6,1.708]
[1718360514153,0.06689151,3515.3,3514.7,1.43344514]
[1718360516997,2.3784,3515.2,3514.7,1.43344514]
[1718360517201,0.06689151,3515.1,3514.7,1.43344514]
[1718360517401,0.39139958,3515.1,3514.7,1.43344514]
[1718360517558,1.09239958,3515.1,3514.7,1.43344514]
[1718360519386,0.06689151,3515.1,3514.8,2.4687]
[1718360519590,0.06689151,3515.3,3514.7,1.43344514]
[1718360519794,0.55,3515.2,3514.7,1.43344514]
[1718360520002,0.61689151,3515.2,3514.7,1.43344514]
[1718360520316,0.55,3515.2,3514.7,2.13444514]
[1718360520477,0.55,3515.4,3514.7,2.13444514]
[1718360520680,0.06689151,3515.3,3514.7,2.13444514]
[1718360527013,2.36369151,3515.3,3514.7,2.13444514]
[1718360527213,2.72516066,3515.3,3514.7,2.13444514]
[1718360527414,0.06689151,3515.2,3514.7,2.13444514]
[1718360527874,0.06689151,3515.2,3514.7,1.43344514]
[1718360532017,2.22169151,3515.3,3514.7,1.43344514]
[1718360540929,2.2919,3514.7,3514.5,7.27]
[1718360541128,1.00029,3514.6,3514.5,7.27]
[1718360541425,1.00029,3514.6,3513.9,7.27]
[1718360541591,0.701,3514.6,3514.0,1.43344514]
[1718360542699,0.701,3514.6,3513.9,7.27]
[1718360542889,0.701,3514.4,3513.9,7.27]
[1718360543290,0.55,3514.5,3513.9,7.27]
[1718360543490,1.251,3514.6,3513.9,7.27]
[1718360544490,0.55,3514.6,3513.9,7.27]
[1718360544940,0.55,3514.6,3514.0,1.43344514]
[1718360545244,2.3665,3515.0,3514.3,0.701]
[1718360545392,3.1114,3515.3,3514.4,1.43344514]
[1718360545598,3.0,3515.2,3514.4,1.43344514]
[1718360545794,3.1114,3515.3,3514.4,1.43344514]
[1718360545795,2.4104,3515.3,3514.5,0.75790309]
[1718360546098,2.4104,3515.3,3514.4,3.14144514]
[1718360546099,2.4104,3515.3,3514.6,1.43344514]
[1718360546896,3.1114,3515.3,3514.6,1.43344514]
[1718360547858,3.1114,3515.3,3514.1,3.9788]
[1718360547999,0.701,3515.1,3514.2,2.13444514]
[1718360548735,0.701,3515.1,3514.2,1.43344514]
[1718360549337,0.55,3515.2,3514.2,1.43344514]
[1718360549533,0.701,3515.1,3514.2,1.43344514]
[1718360551224,0.55,3515.2,3514.3,0.75790357]
[1718360551425,0.55,3515.2,3514.4,1.43344514]
[1718360556453,0.701,3515.1,3514.4,1.43344514]
[1718360557241,0.55,3515.2,3514.4,1.43344514]
[1718360557437,0.701,3515.1,3514.4,1.43344514]
[1718360558728,0.44517387,3515.0,3514.4,1.43344514]
[1718360561059,2.3027,3514.9,3514.4,1.43344514]
[1718360561558,2.3027,3514.9,3514.0,2.409]
[1718360561751,2.3027,3514.9,3514.1,1.43344514]
[1718360567459,0.44517387,3515.0,3514.3,2.4396]
[1718360567662,0.44517387,3515.0,3514.4,1.43344514]
[1718360584500,2.4715,3515.1,3514.4,1.43344514]
[1718360584660,2.4715,3515.1,3514.4,1.84228688]
[1718360586786,2.4715,3515.1,3514.4,1.43344514]
[1718360600422,0.701,3515.0,3514.2,0.59659593]
[1718360600650,0.701,3515.0,3514.1,0.24597223]
[1718360600651,2.29,3514.9,3514.3,1.43344514]
[1718360602256,0.701,3514.8,3514.3,1.43344514]
[1718360609265,0.701,3514.8,3514.1,0.84257396]
[1718360609266,2.4396,3514.7,3514.1,0.84257396]
[1718360609464,2.4396,3514.7,3514.1,0.59659593]
[1718360612650,0.701,3514.6,3514.1,0.59659593]
[1718360612855,0.701,3514.2,3514.0,0.8425746]
[1718360613065,0.701,3514.2,3513.9,7.86659593]
[1718360613066,2.3661,3514.1,3513.9,7.86659593]
[1718360613755,2.3661,3514.1,3513.9,7.27]
[1718360615347,2.3661,3514.1,3513.8,0.59659593]
[1718360620496,2.3661,3514.1,3513.7,0.59659593]
[1718360623833,2.4292,3514.8,3513.8,2.08695726]
[1718360624110,2.4292,3514.8,3513.9,3.1869]
[1718360624343,2.4292,3514.8,3514.0,1.43344514]
[1718360624344,0.701,3514.7,3514.0,1.43344514]
[1718360624459,0.701,3514.2,3513.8,0.59659593]
[1718360624662,0.701,3514.0,3513.7,0.59659593]
[1718360624862,2.3818,3514.1,3513.7,0.59659593]
[1718360625463,0.701,3514.2,3513.7,0.59659593]
[1718360625664,2.348,3514.3,3513.7,0.59659593]
[1718360626620,2.348,3514.3,3513.8,0.59659593]
[1718360626825,0.701,3514.2,3513.8,0.59659593]
[1718360629010,0.701,3514.2,3513.7,0.59659593]
[1718360635660,5.3376,3514.7,3513.9,2.4097]
[1718360635778,1.251,3514.6,3513.9,2.4097]
[1718360638381,1.251,3514.6,3513.9,3.00629593]
[1718360641889,0.55,3514.6,3513.9,3.00629593]
[1718360642698,0.701,3514.5,3513.9,3.00629593]
[1718360644907,0.44523552,3514.4,3513.9,3.00629593]
[1718360646544,0.44523552,3514.4,3513.8,2.03004107]
[1718360646868,1.14623552,3514.4,3513.8,2.03004107]
[1718360647367,1.54961907,3514.4,3513.8,2.03004107]
[1718360649683,1.54961907,3514.4,3513.8,1.43344514]
[1718360649895,0.44523552,3514.4,3513.8,1.43344514]
[1718360650201,1.14623552,3514.4,3513.8,1.43344514]
[1718360652095,0.44523552,3514.4,3513.8,1.43344514]
[1718360652400,1.14623552,3514.4,3513.8,1.43344514]
[1718360653661,0.55,3514.3,3513.7,2.2967]
[1718360653898,0.55,3514.3,3513.7,3.73014514]
[1718360657391,0.701,3514.2,3513.5,7.27]
[1718360657592,0.55,3514.1,3513.5,7.27]
[1718360660376,0.55,3514.1,3513.4,2.3945]
[1718360660698,0.55,3514.1,3513.4,3.82794514]
[1718360665189,2.3071,3514.0,3513.4,1.43344514]
[1718360666100,0.701,3513.7,3513.2,2.4588]
[1718360666315,0.701,3513.7,3513.2,3.89224514]
[1718360666920,0.701,3513.9,3513.2,3.89224514]
[1718360667222,2.3071,3514.0,3513.2,3.89224514]
[1718360667425,0.55,3513.9,3513.2,3.89224514]
[1718360671514,1.251,3513.9,3513.2,3.89224514]
[1718360675494,1.251,3513.9,3512.9,0.701]
[1718360675699,1.251,3513.9,3512.8,7.27]
[1718360675700,0.701,3513.2,3512.8,7.27]
[1718360676018,0.701,3513.4,3512.8,7.27]
[1718360676224,2.4741,3513.8,3512.9,2.4847]
[1718360676225,0.55,3513.3,3512.9,2.4847]
[1718360676425,0.701,3513.6,3512.9,2.4847]
[1718360676709,0.55,3513.5,3512.9,2.4847]
[1718360680236,0.701,3513.4,3512.9,2.4847]
[1718360680423,0.701,3513.2,3512.8,7.27]
[1718360680983,0.701,3513.4,3512.7,2.4926]
[1718360681157,0.701,3513.4,3512.7,3.92604514]
[1718360683502,0.701,3513.2,3512.7,1.43344514]
[1718360689755,2.4859,3513.3,3512.7,1.43344514]
[1718360689973,0.75,3515.1,3512.3,7.27]
[1718360689974,2.3193,3513.9,3513.0,2.4062]
[1718360690145,3.0203,3514.1,3513.1,2.19136735]
[1718360690884,3.0203,3514.1,3513.1,2.13444514]
[1718360691109,0.701,3513.9,3513.1,1.43344514]
[1718360691890,0.701,3513.9,3513.2,0.0569222]
[1718360692217,2.3193,3514.1,3513.2,1.49036734]
[1718360692364,1.251,3514.0,3513.2,1.49036734]
[1718360694186,1.251,3514.0,3513.2,1.43344514]
[1718360694562,0.701,3513.9,3513.2,1.43344514]
[1718360695865,0.55,3514.0,3513.2,1.43344514]
[1718360696081,1.251,3514.0,3513.2,1.43344514]
[1718360697187,0.55,3514.0,3513.2,1.43344514]
[1718360697405,1.251,3514.0,3513.3,2.4399]
[1718360703711,1.251,3514.0,3513.4,1.43344514]
[1718360703903,2.2719,3514.5,3513.5,2.3698]
[1718360704102,5.995,3515.2,3513.9,0.701]
[1718360704103,2.2719,3515.2,3513.9,0.701]
[1718360704304,2.2719,3515.5,3514.3,3.0708]
[1718360704541,0.701,3515.3,3514.3,3.80324514]
[1718360704689,0.44520185,3515.2,3514.4,1.43344514]
[1718360705199,0.44520185,3515.2,3514.3,2.3698]
[1718360705400,0.701,3514.5,3514.0,2.2959]
[1718360705629,0.701,3514.5,3514.0,3.72934514]
[1718360707371,0.701,3514.5,3514.0,2.2959]
[1718360707574,0.701,3514.3,3513.6,7.27]
[1718360707756,0.55,3514.2,3513.6,8.70344514]
[1718360710291,0.55,3514.2,3513.6,1.43344514]
[1718360710653,0.701,3513.7,3512.8,3.06109593]
[1718360710851,0.701,3513.7,3512.9,1.43344514]
[1718360711117,0.55,3513.6,3512.9,1.43344514]
[1718360713283,0.55,3513.6,3512.9,1.29144514]
[1718360713604,2.2661,3513.8,3512.9,1.29144514]
[1718360713605,0.55,3513.7,3512.9,1.29144514]
[1718360719620,0.55,3513.7,3512.9,1.99244514]
[1718360720612,3.0,3514.4,3513.3,0.701]
[1718360720916,0.701,3514.4,3513.4,3.86314514]
[1718360721115,0.30421,3514.3,3513.4,3.92006235]
[1718360721340,0.701,3514.2,3513.4,3.86314514]
[1718360723608,0.701,3514.2,3513.4,1.43344514]
[1718360727522,0.701,3513.9,3513.1,2.4609]
[1718360727723,1.01749,3513.9,3513.2,1.43344514]
[1718360727924,0.701,3513.7,3512.8,2.2863]
[1718360728125,0.55,3513.6,3512.9,1.43344514]
[1718360729626,0.55,3513.6,3512.9,2.13444514]
[1718360730124,0.55,3513.8,3512.9,2.13444514]
[1718360731155,2.4074,3513.6,3512.9,1.43344514]
[1718360735956,0.55,3513.5,3512.5,0.59659593]
[1718360736159,0.701,3512.8,3512.2,7.27]
[1718360736365,0.701,3512.8,3512.0,1.708]
[1718360736366,3.1685,3513.0,3512.3,1.43344514]
[1718360736568,0.55,3512.9,3512.3,1.43344514]
[1718360736871,3.1685,3513.2,3512.3,1.57678965]
[1718360737076,0.55,3513.1,3512.3,1.57678965]
[1718360738460,0.55,3513.1,3512.3,1.43344514]
[1718360739270,0.701,3512.4,3511.8,0.28372065]
[1718360739439,0.701,3512.4,3511.8,1.43344514]
[1718360739642,0.701,3512.6,3511.8,1.49038923]
[1718360739879,0.55,3512.5,3511.8,1.49038923]
[1718360740579,0.55,3512.7,3511.8,1.49038923]
[1718360740764,0.701,3512.6,3511.8,1.49038923]
[1718360741075,0.55,3512.5,3511.8,1.49038923]
[1718360741573,0.701,3512.6,3511.9,1.43344514]
[1718360742055,0.701,3512.6,3512.0,0.05694249]
[1718360742390,0.701,3512.6,3512.0,1.49038763]
[1718360744275,0.701,3512.6,3512.0,1.43344514]
[1718360746245,0.701,3512.6,3511.7,7.83857644]
[1718360746545,0.55,3512.5,3511.8,1.49038952]
[1718360747545,0.701,3512.6,3511.8,2.19138952]
[1718360747947,2.349,3513.0,3511.8,2.19138952]
[1718360748259,0.701,3512.8,3511.8,2.19138952]
[1718360748461,0.55,3512.7,3511.8,2.19138952]
[1718360748661,0.55,3512.7,3511.8,1.49038952]
[1718360748861,0.55,3512.7,3511.8,2.19138952]
[1718360749061,1.251,3512.7,3511.8,2.19138952]
[1718360753189,1.251,3512.7,3511.8,1.49038952]
[1718360754503,0.701,3512.6,3511.8,1.49038952]
[1718360755617,0.701,3512.3,3511.8,1.43344514]
[1718360755917,0.701,3512.1,3511.8,1.43344514]
[1718360756102,0.701,3512.3,3511.8,1.43344514]
[1718360758212,0.701,3512.3,3511.7,0.56857644]
[1718360758415,0.701,3512.3,3511.7,2.00202158]
[1718360758819,0.701,3512.3,3511.7,0.56857644]
[1718360759020,0.885695,3512.2,3511.7,0.56857644]
[1718360759185,0.701,3512.1,3511.7,0.56857644]
[1718360760018,0.701,3511.8,3511.0,1.708]
[1718360760229,0.701,3511.8,3511.1,1.43344514]
[1718360761161,2.463,3511.9,3511.1,2.13444514]
[1718360761492,0.55,3512.2,3511.3,0.701]
[1718360761691,2.3449,3512.6,3511.4,3.19839374]
[1718360761985,0.701,3512.4,3511.4,3.14144514]
[1718360762224,0.55,3512.3,3511.4,3.14144514]
[1718360762785,0.701,3512.2,3511.4,3.14144514]
[1718360763595,0.701,3512.2,3511.4,1.43344514]
[1718360763783,0.55,3512.1,3511.4,1.43344514]
[1718360765310,0.55,3512.1,3511.4,1.40544514]
[1718360765884,1.42064992,3512.1,3511.4,1.40544514]
[1718360766902,2.386,3512.0,3511.4,1.40544514]
[1718360769926,2.386,3512.0,3511.0,2.409]
[1718360770125,2.358,3512.0,3511.1,3.14144514]
[1718360770325,2.917,3512.0,3511.1,3.14144514]
[1718360772937,0.55,3512.1,3511.4,0.701]
[1718360773319,0.55,3512.3,3511.4,0.701]
[1718360774124,0.55,3512.3,3511.4,2.13444514]
[1718360774334,0.55,3512.3,3511.4,2.19139688]
[1718360774831,0.55,3512.3,3511.5,1.43344514]
[1718360775037,2.472,3512.7,3511.8,0.701]
[1718360775254,2.3544,3513.4,3512.3,2.4893]
[1718360775400,2.3544,3514.1,3512.4,3.19837669]
[1718360775595,0.701,3513.7,3512.7,0.701]
[1718360775917,0.701,3513.7,3512.9,0.701]
[1718360776095,0.701,3513.7,3512.9,1.43344514]
[1718360776700,0.61041193,3514.0,3512.9,1.43344514]
[1718360776905,2.3544,3514.1,3513.0,1.49037138]
[1718360777408,5.3544,3514.1,3513.0,1.49037138]
[1718360778446,0.55,3514.0,3513.0,1.49037138]
[1718360778620,3.55,3514.0,3513.0,1.49037138]
[1718360779721,3.55,3514.0,3513.0,1.43344514]
[1718360779925,0.63499094,3513.9,3513.0,1.43344514]
[1718360780209,0.55,3513.8,3513.0,1.43344514]
[1718360780411,0.55,3513.8,3512.4,1.708]
[1718360780720,2.231,3513.8,3512.4,1.43344514]
[1718360780922,2.4959,3513.6,3512.4,1.43344514]
[1718360781112,0.55,3513.5,3512.4,1.43344514]
[1718360785779,0.55,3513.5,3512.3,7.27]
[1718360785926,0.55,3513.5,3512.3,8.70344514]
[1718360785927,3.55,3513.5,3512.3,8.70344514]
[1718360786279,0.86129991,3513.4,3512.3,8.70344514]
[1718360786572,0.55,3513.3,3512.3,1.43344514]
[1718360789284,0.55,3513.3,3511.9,2.3998]
[1718360789486,2.407,3513.2,3512.0,1.43344514]
[1718360789780,1.09992999,3513.1,3512.0,1.43344514]
[1718360793871,1.09992999,3513.1,3512.1,0.05694048]
[1718360794091,1.09992999,3513.1,3512.1,1.49038562]
[1718360796449,1.09992999,3513.1,3512.1,1.43344514]
[1718360798792,0.38843024,3512.6,3512.1,1.43344514]
[1718360804007,0.38843024,3512.6,3512.3,0.701]
[1718360804297,0.38843024,3512.6,3512.4,1.49038033]
[1718360804467,0.38843024,3512.6,3512.4,1.43344514]
[1718360806258,0.38843024,3512.6,3512.4,2.13444514]
[1718360810332,0.38843024,3512.6,3512.4,3.84244514]
[1718360810465,0.38843024,3512.6,3512.5,0.33400043]
[1718360810827,0.38843024,3512.6,3512.5,4.17937614]
[1718360811566,0.38843024,3512.6,3512.5,5.88737614]
[1718360814296,0.38843024,3512.6,3512.5,6.58837614]
[1718360814985,0.38843024,3512.6,3512.5,6.53144557]
[1718360816002,0.38843024,3512.6,3512.5,5.83044557]
[1718360816378,0.38843024,3512.6,3512.5,6.53144557]
[1718360816891,0.38843024,3512.6,3512.5,5.83044557]
[1718360817079,0.38843024,3512.6,3512.5,6.53144557]
[1718360817798,0.38843024,3512.6,3512.1,0.59659593]
[1718360818114,0.38843024,3512.6,3512.2,1.43344514]
[1718360819603,0.38843024,3512.6,3512.3,0.75793531]
[1718360819804,0.38843024,3512.6,3512.4,1.43344514]
[1718360821205,0.38843024,3512.6,3512.5,0.05693573]
[1718360821389,0.38843024,3512.6,3512.5,2.35358323]
[1718360821595,0.38843024,3512.6,3512.5,1.65258323]
[1718360821778,0.38843024,3512.6,3512.5,3.36258323]
[1718360821978,0.38843024,3512.6,3512.5,4.06358323]
[1718360823504,0.38843024,3512.6,3512.5,4.66017916]
[1718360823725,2.436,3514.2,3512.7,1.71]
[1718360823904,2.436,3514.2,3513.3,0.701]
[1718360824106,2.436,3514.2,3513.4,1.49036572]
[1718360824941,2.436,3514.2,3513.5,0.701]
[1718360825136,2.436,3514.2,3513.6,1.4903607]
[1718360826612,2.436,3514.2,3513.7,0.701]
[1718360826835,3.0,3515.1,3513.7,0.701]
[1718360826836,2.3206,3515.0,3513.7,1.70949659]
[1718360827003,0.55,3514.9,3513.7,1.49036052]
[1718360827427,3.55,3514.9,3513.7,1.49036052]
[1718360839021,3.55,3514.9,3513.9,2.3417]
[1718360839227,3.55,3514.9,3513.9,3.77514514]
[1718360839816,4.13706,3514.9,3513.9,3.77514514]
[1718360842459,4.13706,3514.9,3513.9,1.43344514]
[1718360849097,0.7,3514.7,3513.9,1.43344514]
[1718360849324,0.55,3514.6,3513.9,1.43344514]
[1718360853588,0.55,3514.6,3514.0,2.3863]
[1718360868148,0.55,3514.6,3514.0,2.86287565]
[1718360868446,1.25,3514.8,3514.0,2.86287565]
[1718360879085,0.7,3514.6,3514.0,2.3863]
[1718360879316,0.7,3514.4,3514.0,2.3863]
[1718360882347,0.7,3514.6,3514.0,2.3863]
[1718360885998,0.7,3514.7,3514.0,2.3863]
[1718360886201,0.55,3514.6,3514.0,2.3863]
[1718360888838,1.25,3514.6,3514.0,2.3863]
[1718360892778,0.55,3514.6,3514.0,2.3863]
[1718360892942,0.7,3514.6,3514.0,2.82791902]
[1718360894170,0.55,3514.8,3514.0,2.82791902]
[1718360894409,0.93730493,3515.3,3514.1,1.49035515]
[1718360894689,2.3565,3515.4,3514.2,2.4832]
[1718360894859,0.93565,3515.3,3514.4,2.4832]
[1718360895061,0.7,3515.3,3514.4,3.91664514]
[1718360895974,0.55,3515.2,3514.4,3.91664514]
[1718360897259,0.7,3515.1,3514.4,3.91664514]
[1718360897588,0.55,3515.0,3514.4,4.26631106]
[1718360901787,0.7,3515.1,3514.5,1.49034771]
[1718360901991,0.7,3515.1,3514.6,2.3513]
[1718360906490,0.7,3514.9,3514.4,0.34966592]
[1718360906707,0.7,3514.9,3514.4,1.43344514]
[1718360907494,2.48,3515.2,3514.4,1.43344514]
[1718360907717,0.7,3514.9,3514.4,1.43344514]
[1718360908073,0.7,3514.7,3514.0,2.4256]
[1718360908272,0.55,3514.6,3514.0,3.85904514]
[1718360908573,0.7,3514.7,3514.0,3.85904514]
[1718360909293,2.48,3515.2,3514.0,3.85904514]
[1718360909294,0.7,3514.9,3514.0,3.85904514]
[1718360909502,0.55,3514.8,3514.0,3.85904514]
[1718360910625,0.7,3514.8,3514.0,3.85904514]
[1718360910821,0.55,3514.7,3514.0,3.85904514]
[1718360911881,0.7,3514.6,3514.0,3.85904514]
[1718360916110,0.55,3514.7,3514.0,3.85904514]
[1718360917212,0.55,3514.8,3514.0,3.85904514]
[1718360920979,2.306,3515.4,3514.2,2.3884]
[1718360921213,0.7,3515.1,3514.3,1.49034754]
[1718360921385,0.55,3515.0,3514.3,1.49034754]
[1718360921589,0.7,3514.9,3514.3,1.49034754]
[1718360923400,0.55,3515.0,3514.4,2.3081]
[1718360923609,0.7,3515.1,3514.4,3.74154514]
[1718360923914,0.7,3515.2,3514.5,0.0569022]
[1718360924209,3.0,3515.5,3514.5,1.49034734]
[1718360924432,0.7,3515.2,3514.6,2.4006]
[1718360926304,0.55,3515.4,3514.6,2.4006]
[1718360926542,0.7,3515.2,3514.6,2.4006]
[1718360926838,0.7,3515.2,3514.7,0.38340451]
[1718360933396,0.7,3515.2,3514.6,2.4006]
[1718360940856,2.4663,3516.2,3515.0,0.7]
[1718360941081,2.4663,3516.2,3515.2,2.3361]
[1718360941354,0.7,3515.9,3515.2,2.3361]
[1718360942457,0.55,3515.8,3515.2,2.71305451]
[1718360942638,1.25,3516.0,3515.2,2.71305451]
[1718360942948,0.7,3515.8,3515.2,2.71305451]
[1718360945028,0.55,3516.0,3515.2,2.71305451]
[1718360945234,1.25,3516.0,3515.2,2.71305451]
[1718360945461,1.25,3516.0,3515.3,0.41433043]
[1718360947936,0.55,3516.0,3515.3,1.90466541]
[1718360948258,0.7,3516.1,3515.5,2.4134]
[1718360948461,0.7,3516.1,3515.5,3.84684514]
[1718360948663,0.7,3516.1,3515.6,0.37695451]
[1718360949519,7.27,3516.9,3516.0,0.7]
[1718360949721,0.7,3517.2,3516.2,3.1206]
[1718360950462,2.3694,3517.7,3516.3,1.49031879]
[1718360950647,0.58144829,3517.6,3516.3,1.49031879]
[1718360950847,0.7,3517.2,3516.3,1.49031879]
[1718360951049,2.3694,3517.7,3516.3,1.49031879]
[1718360951440,0.7,3517.3,3516.4,2.4141]
[1718360951798,2.3694,3517.7,3516.5,1.49031441]
[1718360952446,0.7,3517.5,3516.6,3.1824]
[1718360952642,1.00694,3517.5,3516.7,0.05686545]
[1718360953433,0.55,3517.4,3516.6,4.61584514]
[1718360954581,0.55,3517.4,3516.6,3.91584514]
[1718360954729,0.55,3517.4,3516.6,4.61584514]
[1718360955646,0.55,3517.4,3516.6,3.91584514]
[1718360958272,0.55,3517.4,3516.6,4.33017557]
[1718360959150,0.55,3517.4,3516.7,0.05686568]
[1718360959332,0.7,3517.4,3516.7,0.05686568]
[1718360959527,0.55,3517.3,3516.7,0.05686568]
[1718360960286,0.55,3517.3,3516.8,2.3061]
[1718360960432,0.55,3517.4,3516.9,0.37695451]
[1718360961441,0.55,3517.4,3516.8,2.3061]
[1718360961670,0.7,3517.3,3516.8,2.3061]
[1718360964416,0.55,3517.4,3516.8,2.3061]
[1718360965077,0.55,3517.5,3516.8,2.3061]
[1718360966393,3.0,3517.9,3517.0,2.3117]
[1718360966557,1.25,3517.8,3517.0,3.74514514]
[1718360968088,0.55,3517.8,3517.0,3.74514514]
[1718360968278,1.25,3517.8,3517.1,2.3413]
[1718360969178,0.7,3517.6,3517.1,2.3413]
[1718360969781,0.7,3517.4,3516.8,2.3662]
[1718360969980,0.7,3517.4,3516.8,3.79964514]
[1718360973095,0.7,3517.2,3516.8,2.3662]
[1718360973303,0.7,3517.2,3516.5,4.1299]
[1718360973644,0.7,3517.2,3516.6,1.43344514]
[1718360974226,0.7,3517.2,3516.5,2.4199]
[1718360974526,0.7,3517.2,3515.9,7.27]
[1718360974527,0.7,3516.6,3516.2,2.4199]
[1718360974844,0.7,3516.9,3516.3,0.41299]
[1718360979537,0.55,3517.1,3516.3,1.90330742]
[1718360979757,0.7,3517.4,3516.5,4.8894]
[1718360980060,0.7,3517.6,3516.7,2.2989]
[1718360980254,0.7,3517.4,3516.8,1.43344514]
[1718360981322,0.7,3517.2,3516.8,1.43344514]
[1718360982325,0.7,3517.2,3516.2,0.7]
[1718360982326,0.7,3517.0,3516.0,1.71]
[1718360982652,0.7,3516.6,3516.1,3.81734514]
[1718360985515,0.7,3516.6,3515.8,1.71]
[1718360985516,0.7,3516.6,3515.8,4.0741]
[1718360985715,0.7,3516.6,3515.9,1.43344514]
[1718360987542,0.55,3517.1,3515.9,1.43344514]
[1718360987865,0.7,3516.7,3515.9,1.43344514]
[1718360988020,0.55,3516.6,3515.9,1.43344514]
[1718360990528,2.3847,3517.1,3516.0,2.41587681]
[1718360990728,0.7,3516.8,3516.1,1.43344514]
[1718360995903,0.7,3516.8,3516.2,0.05687211]
[1718360996093,0.7,3516.8,3516.2,1.49031725]
[1718360996297,0.7,3516.8,3516.3,0.0568721]
[1718360996591,3.0,3517.7,3516.3,0.0568721]
[1718360996592,0.7,3516.9,3516.4,2.4255]
[1718360996757,0.7,3516.9,3516.4,3.85894514]
[1718360996959,0.7,3516.9,3516.5,0.38589451]
[1718360999819,0.7,3517.0,3516.5,0.38589451]
[1718361000490,2.2593,3517.4,3516.5,0.38589451]
[1718361000706,0.7,3517.0,3516.5,0.38589451]
[1718361000930,0.7,3517.0,3516.5,0.44276327]
[1718361001204,0.7,3517.0,3516.6,0.40539043]
[1718361002419,0.55,3517.3,3516.6,0.40539043]
[1718361002796,0.7,3517.0,3516.6,0.40539043]